[Event "Mitropa Cup Women 2024"]
[Site "Apolda"]
[Date "2024.02.20"]
[Round "6.7"]
[White "Hryzlova, Sofiia"]
[Black "Gueci, Tea"]
[Result "1-0"]
[ECO "D30"]
[WhiteElo "2196"]
[BlackElo "2193"]
[Annotator "RC"]
[PlyCount "61"]
[EventDate "2024.02.15"]
[EventType "team-tourn"]
[EventCountry "GER"]
[SourceTitle "playchess.com"]
[Source "ChessBase"]
[SourceQuality "1"]
[WhiteTeam "Switzerland"]
[BlackTeam "Italy"]
[WhiteTeamCountry "SUI"]
[BlackTeamCountry "ITA"]
[TimeControl "40/5400+30:1800+30"]

1. d4 {[%emt 0:00:03]} d5 {[%emt 0:00:02]} 2. c4 {[%emt 0:00:17]} e6 {[%emt 0:00:03]} 3. Nf3 {[%emt 0:00:06]} Nd7 {[%emt 0:00:05]} 4. g3 {[%emt 0:00:19]} dxc4 {[%emt 0:00:04]} 5. Bg2 {[%emt 0:00:06]} Rb8 {[%emt 0:00:17]} 6. a4 {[%emt 0:00:17]} a6 {[%emt 0:00:02]} 7. a5 {[%emt 0:00:12]} Bd6 {[%emt 0:00:03]} 8. O-O {[%emt 0:00:23]} b5 {[%emt 0:00:31]} 9. axb6 {[%emt 0:00:20]} Nxb6 {[%emt 0:00:04]} 10. Nbd2 {[%emt 0:00:22]} Ne7 {[%emt 0:00:29]} 11. Nxc4 {[%emt 0:08:11]} Nxc4 {[%emt 0:00:06]} 12. Qa4+ {[%emt 0:00:08]} Rb5 {[%emt 0:02:44]} 13. Qxc4 {[%emt 0:00:17]} O-O {[%emt 0:01:11]} 14. e4 {[%emt 0:10:40]} Bb7 {[%emt 0:05:24]} 15. Re1 {[%emt 0:02:54]} Bb4 {[%emt 0:04:59]} 16. Re2 {[%emt 0:06:46]} c5 {[%emt 0:05:12]} 17. Bg5 {[%emt 0:16:17]} cxd4 {[%emt 0:14:56]} 18. Nxd4 {[%emt 0:01:42]} Rxg5 {[%emt 0:02:14]} 19. Qxb4 {[%emt 0:00:10]} Nc6 {[%emt 0:01:32]} 20. Nxc6 {[%emt 0:00:41]} Bxc6 {[%emt 0:00:07]} 21. Rd2 {[%emt 0:02:18]} Qa8 {[%emt 0:04:56]} 22. Qe7 {[%emt 0:16:28]} Rb5 {[%emt 0:13:08]} 23. Rxa6 {[%emt 0:00:49]} Qxa6 {[%emt 0:09:19]} 24. Rd8 {[%emt 0:00:13]} Qa1+ {[%emt 0:00:17]} 25. Bf1 {[%emt 0:00:06]} h6 {[%emt 0:01:24]} 26. Rxf8+ {[%emt 0:01:59]} Kh7 {[%emt 0:00:04]} 27. Qxf7 {[%emt 0:05:12]} Rc5 {[%emt 0:16:03]} 28. Qg8+ {[%emt 0:02:28]} Kg6 {[%emt 0:00:04]} 29. Qxe6+ {[%emt 0:00:10]} Kh7 {[%emt 0:00:39]} 30. e5 {[%emt 0:01:56]} Be4 {[%emt 0:04:46]} 31. Qe8 {[%emt 0:00:38]} 1-0

[Event "Mitropa Cup Women 2024"]
[Site "Apolda"]
[Date "2024.02.20"]
[Round "6.8"]
[White "Cassi, Elisa"]
[Black "Manko, Mariia"]
[Result "0-1"]
[ECO "B31"]
[WhiteElo "2033"]
[BlackElo "2128"]
[Annotator "NA RC"]
[PlyCount "66"]
[EventDate "2024.02.15"]
[EventType "team-tourn"]
[EventCountry "GER"]
[SourceTitle "playchess.com"]
[Source "ChessBase"]
[SourceQuality "1"]
[WhiteTeam "Italy"]
[BlackTeam "Switzerland"]
[WhiteTeamCountry "ITA"]
[BlackTeamCountry "SUI"]
[TimeControl "40/5400+30:1800+30"]

1. e4 {[%emt 0:00:02]} c5 {[%emt 0:00:06]} 2. Nf3 {[%emt 0:00:05]} Nc6 {[%emt 0:00:05]} 3. Bb5 {[%emt 0:00:09]} g6 {[%emt 0:00:10]} 4. O-O {[%emt 0:00:40]} Bg7 {[%emt 0:00:19]} 5. c3 {[%emt 0:00:08]} Nf6 {[%emt 0:01:41]} 6. Re1 {[%emt 0:00:18]} O-O {[%emt 0:02:27]} 7. d4 {[%emt 0:00:21]} d5 {[%emt 0:00:14]} 8. e5 {[%emt 0:00:06]} Ne4 {[%emt 0:00:12]} 9. Bxc6 {[%emt 0:00:19]} bxc6 {[%emt 0:00:08]} 10. Be3 {[%emt 0:00:08]} c4 {[%emt 0:04:52]} 11. Nbd2 {[%emt 0:17:10]} Nxd2 {[%emt 0:04:18]} 12. Nxd2 {[%emt 0:04:06]} Bf5 $11 {[%emt 0:05:08]} 13. b3 {[%emt 0:03:28]} Qa5 {[%emt 0:04:27]} 14. Qc1 {[%emt 0:05:54]} Bd3 {[%emt 0:04:34]} 15. Bg5 {[%emt 0:06:03]} f6 {[%emt 0:09:56]} 16. exf6 {[%emt 0:06:28]} exf6 {[%emt 0:03:06]} 17. Bf4 {[%emt 0:00:12]} Rfe8 {[%emt 0:00:41]} 18. Qb2 {[%emt 0:05:48]} Bf8 {[%emt 0:06:15]} 19. bxc4 {[%emt 0:14:40]} dxc4 {[%emt 0:05:01]} 20. Qb7 {[%emt 0:02:42]} Qxc3 {[%emt 0:04:52]} 21. Qxc6 {[%emt 0:04:49]} Qxd4 {[%emt 0:02:52]} 22. Nf3 {[%emt 0:07:36]} Qc5 {[%emt 0:07:58]} 23. Qxf6 {[%emt 0:04:26]} Bg7 {[%emt 0:01:51]} 24. Qh4 {[%emt 0:00:45]} Bxa1 {[%emt 0:05:28]} 25. Rxa1 {[%emt 0:00:05]} Re2 {[%emt 0:01:13]} 26. Be3 {[%emt 0:04:41]} Rxe3 {[%emt 0:07:40]} 27. fxe3 {[%emt 0:00:05]} c3 {[%emt 0:00:22]} 28. Qd4 {[%emt 0:09:19]} Qxd4 {[%emt 0:01:09]} 29. Nxd4 {[%emt 0:00:25]} c2 {[%emt 0:04:02]} 30. Nb3 {[%emt 0:02:18]} a5 {[%emt 0:02:23]} 31. Nc5 {[%emt 0:01:43]} Rb8 {[%emt 0:01:22]} 32. Rc1 {[%emt 0:00:20]} Be4 {[%emt 0:01:03]} 33. Nb3 {[%emt 0:01:07]} a4 {[%emt 0:00:07]} 0-1

[Event "Mitropa Cup Women 2024"]
[Site "Apolda"]
[Date "2024.02.20"]
[Round "6.9"]
[White "Hagarova, Zuzana"]
[Black "Novosadova, Kristyna"]
[Result "1-0"]
[ECO "C44"]
[WhiteElo "2280"]
[BlackElo "2188"]
[Annotator "TA"]
[PlyCount "61"]
[EventDate "2024.02.15"]
[EventType "team-tourn"]
[EventCountry "GER"]
[SourceTitle "playchess.com"]
[Source "ChessBase"]
[SourceQuality "1"]
[WhiteTeam "Slovakia"]
[BlackTeam "Czech Republic"]
[WhiteTeamCountry "SVK"]
[BlackTeamCountry "CZE"]
[TimeControl "40/5400+30:1800+30"]

{[%evp 18,61,0,0,0,-21,-37,-22,-21,-28,-19,-19,-13,-26,-13,-30,-31,-19,-20,-28,-27,-24,-18,-22,-27,-25,-13,-39,-37,-47,-33,-44,-29,-29,-21,-43,-43,-111,-7,-79,0,0,0,0,29998,29999]} 1. e4 {[%emt 0:00:09]} e5 {[%emt 0:00:04]} 2. Nf3 {[%emt 0:00:20]} Nc6 {[%emt 0:00:06]} 3. d4 {[%emt 0:00:06]} exd4 {[%emt 0:00:10]} 4. c3 {[%emt 0:00:21]} d5 {[%emt 0:00:04]} 5. exd5 {[%emt 0:00:17]} Qxd5 {[%emt 0:00:06]} 6. cxd4 {[%emt 0:00:22]} Bg4 {[%emt 0:00:28]} 7. Be2 {[%emt 0:01:50]} Bb4+ {[%emt 0:00:10]} 8. Nc3 {[%emt 0:00:12]} Bxf3 {[%emt 0:00:11]} 9. Bxf3 {[%emt 0:00:23]} Qc4 {[%emt 0:00:07]} 10. Qb3 {[%emt 0:00:44]} Qxb3 {[%emt 0:04:45]} 11. Bxc6+ {[%emt 0:00:42]} bxc6 {[%emt 0:00:04]} 12. axb3 {[%emt 0:00:04]} Ne7 {[%emt 0:08:07] The position is equal.} 13. Ke2 {[%emt 0:00:45]} Kd7 {[%emt 0:01:33]} 14. Kd3 {[%emt 0:50:17]} Rhb8 {[%emt 0:00:56]} 15. Kc2 {[%emt 0:01:39]} Bd6 {[%emt 0:07:48]} 16. Ra5 {[%emt 0:01:29]} Rb4 {[%emt 0:01:01]} 17. Rd1 {[%emt 0:02:52]} Rab8 {[%emt 0:01:23]} 18. Rxa7 {[%emt 0:01:46]} Rxb3 {[%emt 0:07:27]} 19. Rd3 {[%emt 0:01:04]} f5 {[%emt 0:08:02]} 20. Ra5 {[%emt 0:15:28]} h6 {[%emt 0:04:42]} 21. h4 {[%emt 0:00:52]} h5 {[%emt 0:05:02]} 22. Re3 {[%emt 0:02:14]} R3b4 {[%emt 0:07:59]} 23. Kd3 {[%emt 0:04:53]} g6 {[%emt 0:01:50][%cal Oe7d5]} 24. Re2 {[%emt 0:01:11]} Rb3 {[%emt 0:05:28]} 25. Kc2 {[%emt 0:00:16]} Ng8 {[%emt 0:11:14]} 26. d5 {[%emt 0:00:55]} Ne7 {[%emt 0:00:33]} 27. Re3 {[%emt 0:06:31] [#]} (27. Re1 $15) 27... c5 {[%emt 0:04:11]} (27... R3b4 $1 $17 28. g3 f4) 28. Ra7 {[%emt 0:02:29] [#]} (28. Re6 $11) 28... f4 {[%emt 0:01:00]} ({Black should try} 28... R3b4 $1 $17 29. g3 f4 30. gxf4 Bxf4) 29. Re6 $11 {[%emt 0:00:41][%cal Oe6d6] Black must now prevent Rxd6+!} R3b4 {[%emt 0:05:55]} 30. Ne4 {[%emt 0:00:37]} Nf5 {[%emt 0:06:37][%mdl 8192]} (30... R8b6 $11) 31. Nf6+ {[%emt 0:00:19] Weighted Error Value: White=0.15 (very precise) /Black=0.45.  Loses game:     	---       	Black=1      Mistake:       	White=2     	Black=2      Inaccurate:     	White=1     	---        OK:         	White=6     	Black=10     Best:        	White=2     	---} 1-0

[Event "Mitropa Cup Women 2024"]
[Site "Apolda"]
[Date "2024.02.20"]
[Round "6.10"]
[White "Koubova, Anna Marie"]
[Black "Walter, Ema"]
[Result "0-1"]
[ECO "E45"]
[WhiteElo "2100"]
[BlackElo "2124"]
[Annotator "RC"]
[PlyCount "70"]
[EventDate "2024.02.15"]
[EventType "team-tourn"]
[EventCountry "GER"]
[SourceTitle "playchess.com"]
[Source "ChessBase"]
[SourceQuality "1"]
[WhiteTeam "Czech Republic"]
[BlackTeam "Slovakia"]
[WhiteTeamCountry "CZE"]
[BlackTeamCountry "SVK"]
[TimeControl "40/5400+30:1800+30"]

1. d4 {[%emt 0:00:12]} Nf6 {[%emt 0:00:04]} 2. c4 {[%emt 0:00:12]} e6 {[%emt 0:00:03]} 3. Nc3 {[%emt 0:00:15]} Bb4 {[%emt 0:00:11]} 4. e3 {[%emt 0:00:25]} b6 {[%emt 0:00:06]} 5. Nge2 {[%emt 0:01:56]} Ba6 {[%emt 0:00:14]} 6. a3 {[%emt 0:04:33]} Be7 {[%emt 0:00:30]} 7. Nf4 {[%emt 0:01:37]} d5 {[%emt 0:01:35]} 8. b3 {[%emt 0:13:33]} O-O {[%emt 0:06:08]} 9. Be2 {[%emt 0:00:57]} c6 {[%emt 0:11:37]} 10. O-O {[%emt 0:03:27]} Nbd7 {[%emt 0:00:58]} 11. Bb2 {[%emt 0:03:04]} Rc8 {[%emt 0:06:08]} 12. Re1 {[%emt 0:03:40]} Re8 {[%emt 0:02:16]} 13. Bd3 {[%emt 0:07:37]} Nf8 {[%emt 0:16:18]} 14. e4 {[%emt 0:03:16]} dxe4 {[%emt 0:05:01]} 15. Nxe4 {[%emt 0:04:21]} Nxe4 {[%emt 0:00:23]} 16. Rxe4 {[%emt 0:10:27]} Bb7 {[%emt 0:10:49]} 17. Qc2 {[%emt 0:08:06]} c5 {[%emt 0:08:24]} 18. d5 {[%emt 0:00:18]} exd5 {[%emt 0:00:54]} 19. cxd5 {[%emt 0:00:56]} Bd6 {[%emt 0:01:13]} 20. Rxe8 {[%emt 0:09:13]} Qxe8 {[%emt 0:00:17]} 21. Qc3 {[%emt 0:00:32]} f6 {[%emt 0:01:11]} 22. Re1 {[%emt 0:00:57]} Qf7 {[%emt 0:01:19]} 23. Qc4 {[%emt 0:08:58]} Bxf4 {[%emt 0:04:23]} 24. Qxf4 {[%emt 0:00:07]} Bxd5 {[%emt 0:00:19]} 25. Qd6 {[%emt 0:00:34]} Rc6 {[%emt 0:05:36]} 26. Qxd5 {[%emt 0:12:16]} Qxd5 {[%emt 0:00:11]} 27. Bc4 {[%emt 0:00:05]} Qxc4 {[%emt 0:05:35]} 28. bxc4 {[%emt 0:00:06]} Kf7 {[%emt 0:00:13]} 29. Bc3 {[%emt 0:02:12]} Re6 {[%emt 0:03:42]} 30. Kf1 {[%emt 0:00:46]} Nd7 {[%emt 0:02:41]} 31. Rc1 {[%emt 0:00:40]} Re4 {[%emt 0:01:16]} 32. Bb2 {[%emt 0:00:13]} Ke6 {[%emt 0:01:28]} 33. a4 {[%emt 0:00:23]} Kd6 {[%emt 0:02:10]} 34. Rc3 {[%emt 0:00:43]} Ne5 {[%emt 0:00:40]} 35. Rg3 {[%emt 0:00:50]} Nxc4 {[%emt 0:00:10]} 0-1

[Event "Mitropa Cup Women 2024"]
[Site "Apolda"]
[Date "2024.02.20"]
[Round "6.11"]
[White "Sevcikova, Lucia"]
[Black "Lhotska, Anna"]
[Result "0-1"]
[ECO "A79"]
[WhiteElo "2007"]
[BlackElo "2053"]
[Annotator "NA RC"]
[PlyCount "106"]
[EventDate "2024.02.15"]
[EventType "team-tourn"]
[EventCountry "GER"]
[SourceTitle "playchess.com"]
[Source "ChessBase"]
[SourceQuality "1"]
[WhiteTeam "Slovakia"]
[BlackTeam "Czech Republic"]
[WhiteTeamCountry "SVK"]
[BlackTeamCountry "CZE"]
[TimeControl "40/5400+30:1800+30"]

1. d4 {[%emt 0:00:04]} Nf6 {[%emt 0:00:27]} 2. c4 {[%emt 0:00:07]} c5 {[%emt 0:00:05]} 3. d5 {[%emt 0:00:06]} e6 {[%emt 0:00:05]} 4. Nc3 {[%emt 0:00:07]} exd5 {[%emt 0:00:06]} 5. cxd5 {[%emt 0:00:06]} d6 {[%emt 0:00:06]} 6. Nf3 {[%emt 0:00:13]} g6 {[%emt 0:00:13]} 7. Nd2 {[%emt 0:00:19]} Bg7 {[%emt 0:00:22]} 8. e4 {[%emt 0:00:15]} O-O {[%emt 0:00:14]} 9. Be2 {[%emt 0:00:20]} Re8 {[%emt 0:00:11]} 10. O-O {[%emt 0:00:21]} Na6 {[%emt 0:00:48]} 11. f3 {[%emt 0:00:52]} Nc7 {[%emt 0:01:20]} 12. a4 {[%emt 0:01:13]} b6 {[%emt 0:03:20]} 13. Nc4 {[%emt 0:03:48]} Ba6 {[%emt 0:01:33]} 14. Qc2 {[%emt 0:08:57]} Bxc4 {[%emt 0:07:48]} 15. Bxc4 {[%emt 0:00:07]} a6 {[%emt 0:00:12]} 16. Rb1 {[%emt 0:04:43]} Qd7 {[%emt 0:02:41]} 17. b4 {[%emt 0:02:27]} b5 {[%emt 0:03:42]} 18. Be2 {[%emt 0:00:26]} c4 {[%emt 0:01:16]} 19. a5 {[%emt 1:15:29]} Qe7 {[%emt 0:05:53]} 20. Re1 {[%emt 0:00:00]} Nh5 {[%emt 0:01:46]} 21. g4 {[%emt 0:00:00]} Bd4+ {[%emt 0:08:34]} 22. Kh1 {[%emt 0:00:00]} Qh4 {[%emt 0:01:11]} 23. Bb2 {[%emt 0:00:00]} Nf4 {[%emt 0:15:23]} 24. Qd2 {[%emt 0:00:00]} Be5 {[%emt 0:08:54]} 25. Bf1 {[%emt 0:00:00]} h5 {[%emt 0:03:19]} 26. Ne2 {[%emt 0:00:00]} Nd3 {[%emt 0:02:12]} 27. Bxe5 {[%emt 0:00:00]} Rxe5 {[%emt 0:01:29]} 28. Ng3 {[%emt 0:00:00]} Nxe1 {[%emt 0:00:39]} 29. Rxe1 {[%emt 0:00:00]} hxg4 {[%emt 0:02:21]} 30. f4 {[%emt 0:00:00]} Ree8 {[%emt 0:02:48]} 31. Qd4 {[%emt 0:00:00]} Rad8 {[%emt 0:03:11]} 32. Bg2 {[%emt 0:00:00]} f5 {[%emt 0:10:07]} 33. Rf1 {[%emt 0:00:42]} Re7 {[%emt 0:01:24]} 34. Rd1 {[%emt 0:02:35]} Rh7 {[%emt 0:00:47]} 35. Nf1 {[%emt 0:00:06]} g3 {[%emt 0:04:42]} 36. e5 {[%emt 0:00:26]} g5 {[%emt 0:02:53]} 37. Qb6 {[%emt 0:01:27]} Qxf4 {[%emt 0:01:04]} 38. Re1 {[%emt 0:04:14]} Qf2 {[%emt 0:04:33]} 39. exd6 {[%emt 0:00:00]} Rxh2+ {[%emt 0:01:45]} 40. Nxh2 {[%emt 0:00:00]} Qxe1+ {[%emt 0:00:05]} 41. Nf1 {[%emt 0:02:32]} Rd7 {[%emt 0:01:51]} 42. dxc7 {[%emt 0:02:37]} Rh7+ {[%emt 0:00:06]} 43. Kg1 {[%emt 0:00:03]} Qf2+ {[%emt 0:00:28]} 44. Qxf2 {[%emt 0:00:05]} gxf2+ {[%emt 0:00:04]} 45. Kxf2 {[%emt 0:00:03]} Rxc7 {[%emt 0:00:08]} 46. Ke2 {[%emt 0:06:52]} Kf7 {[%emt 0:04:22]} 47. Ne3 {[%emt 0:04:25]} Kf6 {[%emt 0:01:25]} 48. Bh3 {[%emt 0:01:08]} g4 {[%emt 0:00:18]} 49. Bg2 {[%emt 0:01:35]} Kg5 50. Nc2 {[%emt 0:00:45]} f4 51. Nd4 {[%emt 0:16:25]} f3+ {[%emt 0:02:55]} 52. Kf2 {[%emt 0:00:30]} Rd7 {[%emt 0:25:24]} 53. Ne6+ {[%emt 0:00:30]} Kh4 {[%emt 0:00:00]} 0-1

[Event "Mitropa Cup Women 2024"]
[Site "Apolda"]
[Date "2024.02.20"]
[Round "6.12"]
[White "Rybackova, Lucie"]
[Black "Sekova, Olivia"]
[Result "1-0"]
[ECO "E61"]
[WhiteElo "1970"]
[BlackElo "2054"]
[Annotator "NA RC"]
[PlyCount "135"]
[EventDate "2024.02.15"]
[EventType "team-tourn"]
[EventCountry "GER"]
[SourceTitle "playchess.com"]
[Source "ChessBase"]
[SourceQuality "1"]
[WhiteTeam "Czech Republic"]
[BlackTeam "Slovakia"]
[WhiteTeamCountry "CZE"]
[BlackTeamCountry "SVK"]
[TimeControl "40/5400+30:1800+30"]

1. d4 {[%emt 0:00:02]} Nf6 {[%emt 0:00:16]} 2. Nf3 {[%emt 0:00:13]} g6 {[%emt 0:00:07]} 3. c4 {[%emt 0:00:18]} Bg7 {[%emt 0:00:06]} 4. Nc3 {[%emt 0:00:12]} d6 {[%emt 0:00:15]} 5. Bg5 {[%emt 0:00:12]} O-O {[%emt 0:00:34]} 6. e3 {[%emt 0:00:24]} c5 {[%emt 0:00:48]} 7. Be2 {[%emt 0:00:22]} h6 {[%emt 0:00:45]} 8. Bh4 {[%emt 0:01:34]} Bf5 {[%emt 0:01:54]} 9. O-O {[%emt 0:02:00]} Nc6 {[%emt 0:01:14]} 10. dxc5 {[%emt 0:20:07]} dxc5 {[%emt 0:02:01]} 11. Qb3 {[%emt 0:04:04]} Nb4 {[%emt 0:04:48]} 12. Rfd1 {[%emt 0:07:49]} Qa5 {[%emt 0:07:05]} 13. Rac1 {[%emt 0:03:05]} Rfd8 {[%emt 0:08:56]} 14. a3 {[%emt 0:07:37]} Nd3 {[%emt 0:15:57]} 15. Bxd3 {[%emt 0:00:44]} Bxd3 {[%emt 0:02:58]} 16. Nd5 {[%emt 0:11:08]} Rxd5 {[%emt 0:17:44]} 17. cxd5 {[%emt 0:01:36]} Be2 {[%emt 0:01:16]} 18. Re1 {[%emt 0:01:36]} Ba6 {[%emt 0:00:29]} 19. e4 {[%emt 0:03:38]} c4 {[%emt 0:02:04]} 20. Qb4 {[%emt 0:06:56]} Qxb4 {[%emt 0:01:15]} 21. axb4 {[%emt 0:00:04]} Nd7 {[%emt 0:01:02]} 22. e5 {[%emt 0:03:32]} Nb6 {[%emt 0:00:45]} 23. Bxe7 {[%emt 0:07:40]} Nxd5 {[%emt 0:00:09]} 24. Bd6 {[%emt 0:00:31]} Nf4 {[%emt 0:00:45]} 25. Rc2 {[%emt 0:01:56]} Rd8 {[%emt 0:01:37]} 26. Nd4 {[%emt 0:02:40]} Nd3 {[%emt 0:00:22]} 27. Re3 {[%emt 0:00:31]} Nxb4 {[%emt 0:15:31]} 28. Bxb4 {[%emt 0:00:45]} Rxd4 {[%emt 0:00:03]} 29. Rd2 {[%emt 0:00:53]} Rxd2 {[%emt 0:00:12]} 30. Bxd2 {[%emt 0:00:10]} Bf8 {[%emt 0:01:32]} 31. Re1 {[%emt 0:01:10]} Bb5 {[%emt 0:01:14]} 32. Be3 {[%emt 0:02:09]} a6 {[%emt 0:00:05]} 33. Rc1 {[%emt 0:00:31]} g5 {[%emt 0:00:56]} 34. f3 {[%emt 0:01:06]} Bb4 {[%emt 0:00:52]} 35. Kf2 {[%emt 0:00:28]} Kf8 {[%emt 0:00:07]} 36. h4 {[%emt 0:00:56]} gxh4 {[%emt 0:00:43]} 37. Bxh6+ {[%emt 0:04:24]} Ke7 {[%emt 0:00:05]} 38. Rh1 {[%emt 0:02:06]} Ke6 {[%emt 0:02:52]} 39. Rxh4 {[%emt 0:00:39]} Kxe5 {[%emt 0:01:32]} 40. Be3 {[%emt 0:00:22]} a5 {[%emt 0:02:25]} 41. Rh5+ {[%emt 0:30:56]} f5 {[%emt 0:30:09]} 42. g4 {[%emt 0:00:00]} Bd7 {[%emt 0:00:00]} 43. Rh7 {[%emt 0:00:00]} Bc6 {[%emt 0:00:00]} 44. f4+ {[%emt 0:00:00]} Ke4 {[%emt 0:00:00]} 45. g5 {[%emt 0:00:00]} c3 {[%emt 0:00:00]} 46. bxc3 {[%emt 0:00:00]} Bxc3 {[%emt 0:00:00]} 47. Re7+ {[%emt 0:00:00]} Kd3 {[%emt 0:00:00]} 48. g6 {[%emt 0:00:00]} Bd5 {[%emt 0:00:00]} 49. g7 {[%emt 0:00:00]} Kc2 {[%emt 0:00:00]} 50. Rxb7 {[%emt 0:00:00]} a4 {[%emt 0:00:00]} 51. Bc5 {[%emt 0:00:00]} Bb2 {[%emt 0:00:00]} 52. Kg3 {[%emt 0:00:00]} a3 {[%emt 0:00:00]} 53. Bxa3 {[%emt 0:00:00]} Bxa3 {[%emt 0:00:00]} 54. Rb8 {[%emt 0:00:00]} Be7 {[%emt 0:00:00]} 55. g8=Q {[%emt 0:00:00]} Bxg8 {[%emt 0:00:00]} 56. Rxg8 {[%emt 0:00:00]} Kd3 {[%emt 0:00:00]} 57. Re8 {[%emt 0:00:00]} Bf6 {[%emt 0:00:00]} 58. Re6 {[%emt 0:00:00]} Bh8 {[%emt 0:00:00]} 59. Kh4 {[%emt 0:00:00]} Kd4 {[%emt 0:00:00]} 60. Kg5 {[%emt 0:00:00]} Kd5 {[%emt 0:00:00]} 61. Re8 {[%emt 0:00:00]} Bc3 {[%emt 0:00:00]} 62. Kxf5 {[%emt 0:00:00]} Kd6 {[%emt 0:00:00]} 63. Kg6 {[%emt 0:00:00]} Kd7 {[%emt 0:00:00]} 64. Re2 {[%emt 0:00:00]} Bb4 {[%emt 0:00:00]} 65. f5 {[%emt 0:00:00]} Bf8 {[%emt 0:00:00]} 66. f6 {[%emt 0:00:00]} Bc5 {[%emt 0:00:00]} 67. f7 {[%emt 0:00:00]} Be7 {[%emt 0:00:00]} 68. Rxe7+ {[%emt 0:00:00]} 1-0